{"text_format":"1","workbook":"xlsx","n_sheets":1,"sheets":["Game Board"],"not_rendered":{"charts":0,"images":2,"macros":1,"external_links":0,"defined_names":0,"comments":0,"pivot_tables":0},"unopened":[],"bounds":{"document_bytes":16777216,"sheet_cells":100000,"rows_first":2000,"rows_last":500,"rows_between":2000,"halvings":0,"cell_chars":16384,"cell_head_chars":4096},"cells_cut":0,"cells_raw":0,"read":"whole","date_system":"1900"}

{"sheet":"Game Board","index":0,"n_rows":50,"n_cols":25,"rows_kept":50,"cut":false,"hidden":false,"merged":[[19,1,30,6],[0,3,2,4],[9,2,10,2],[9,1,10,1],[4,10,4,13],[17,1,18,6]]}
[null,null,null,{"$f":"S6","v":0}]
[]
[]
[]
[null,null,null,null,null,null,null,null,null,{"$f":"COUNTA(J6:J15007)","v":0},"    Possible Solutions",null,null,null,"Time (Seconds)"]
[null,null,null,null,null,null,null,null,null,null,null,null,null," ",null,null,null,{"$f":"RANDBETWEEN(100,999)","v":273}]
[]
[null,null,null,null,null,null,null,null,null,null,null,null,null,null,null,null,"Place No",6,5,4,3,2,1]
[null,"Large","Small"]
[null,null,{"$f":"6-B10","v":6},null,null,null,null,null,null,null,null,null,null,null,null,null,"Type",{"$f":"IF(R$8<=$C$10,$Q$17,$Q$13)","v":2},{"$f":"IF(S$8<=$C$10,$Q$17,$Q$13)","v":2},2,2,2,2]
[]
[null,null,null,null,null,null,null,null,null,null,null,null,null,null,null,null,null,"Large Numbers",null,null,null,null,null,null," "]
[null,null,null,null,null,null,null,null,null,null,null,null,null,null,null,null,1,1,2,3,4,5,6]
[null,"1st Set","2nd Set","3rd Set","4th Set ","5th Set ","Total ",null,null,null,null,null,null,null,null,null,null,{"$f":"INDEX($R$25:$R$28,MATCH(R$13,$T$25:$T$28,))","v":75},{"$f":"INDEX($R$25:$R$28,MATCH(S$13,$T$25:$T$28,))","v":50},100,25]
[null,null,null,null,null,null,{"$f":"SUM(B15:F15)","v":0}]
[null,null,null,null,null,null,null,null,null,null,null,null,null,null,null,null,null,"Small Numbers"]
[null,null,null,null,null,null,null,null,null,null,null,null,null,null,null,null,2,1,2,3,4,5,6]
[null,"Notepad",null,null,null,null,null,null,null,null,null,null,null,null,null,null,null,{"$f":"INDEX($R$31:$R$50,MATCH(R$17,$T$31:$T$50,))","v":10},{"$f":"INDEX($R$31:$R$50,MATCH(S$17,$T$31:$T$50,))","v":6},1,5,6,8]
[]
[null,null,null,null,null,null,null,null,null,null,null,null,null,null,null,null,null,"Selected Numbers"]
[null,null,null,null,null,null,null,null,null,null,null,null,null,null,null,null,null,{"$f":"IF(R$10=1,R$14,R$18)","v":10},{"$f":"IF(S$10=1,S$14,S$18)","v":6},1,5,6,8]
[null,null,null,null,null,null,null,null,null,null,null,null,null,null,null,null,null,{"$f":"IF(R$10=1,R$14,R$18)","v":10},6,1,5,6,8]
[]
[]
[null,null,null,null,null,null,null,null,null,null,null,null,null,null,null,null,null,100,{"$f":"RAND()","v":0.65269075442375768},{"$f":"RANK(S25,S25:S28,0)","v":3}]
[null,null,null,null,null,null,null,null,null,null,null,null,null,null,null,null,null,75,{"$f":"RAND()","v":0.85094306628268446},{"$f":"RANK(S26,S25:S28,0)","v":1}]
[null,null,null,null,null,null,null,null,null,null,null,null,null,null,null,null,null,50,{"$f":"RAND()","v":0.75362597395453823},{"$f":"RANK(S27,S25:S28,0)","v":2}]
[null,null,null,null,null,null,null,null,null,null,null,null,null,null,null,null,null,25,{"$f":"RAND()","v":0.10358535764217769},{"$f":"RANK(S28,S25:S28,0)","v":4}]
[]
[]
[null,null,null,null,null,null,null,null,null,null,null,null,null,null,null,null,null,10,{"$f":"RAND()","v":7.9394440997924587E-2},{"$f":"RANK(S31,$S$31:$S$50,0)","v":18}]
[null,null,null,null,null,null,null,null,null,null,null,null,null,null,null,null,null,10,{"$f":"RAND()","v":0.8927983780253832},{"$f":"RANK(S32,$S$31:$S$50,0)","v":1}]
[null,null,null,null,null,null,null,null,null,null,null,null,null,null,null,null,null,{"$f":"R31-1","v":9},0.20317961135600804,16]
[null,null,null,null,null,null,null,null,null,null,null,null,null,null,null,null,null,{"$f":"R32-1","v":9},0.50059156569876917,10]
[null,null,null,null,null,null,null,null,null,null,null,null,null,null,null,null,null,8,0.39462820767595308,11]
[null,null,null,null,null,null,null,null,null,null,null,null,null,null,null,null,null,8,0.69779015261743005,6]
[null,null,null,null,null,null,null,null,null,null,null,null,null,null,null,null,null,7,6.9946992545825926E-2,19]
[null,null,null,null,null,null,null,null,null,null,null,null,null,null,null,null,null,7,0.32598777340579865,13]
[null,null,null,null,null,null,null,null,null,null,null,null,null,null,null,null,null,6,0.84805159247287221,5]
[null,null,null,null,null,null,null,null,null,null,null,null,null,null,null,null,null,6,0.88635169318927065,2]
[null,null,null,null,null,null,null,null,null,null,null,null,null,null,null,null,null,5,0.84842786328257558,4]
[null,null,null,null,null,null,null,null,null,null,null,null,null,null,null,null,null,5,0.51686487812987159,9]
[null,null,null,null,null,null,null,null,null,null,null,null,null,null,null,null,null,4,0.20761365236815787,15]
[null,null,null,null,null,null,null,null,null,null,null,null,null,null,null,null,null,4,0.65948622774408505,7]
[null,null,null,null,null,null,null,null,null,null,null,null,null,null,null,null,null,3,0.32754381081737771,12]
[null,null,null,null,null,null,null,null,null,null,null,null,null,null,null,null,null,3,0.1673805549482078,17]
[null,null,null,null,null,null,null,null,null,null,null,null,null,null,null,null,null,2,0.60719570345483009,8]
[null,null,null,null,null,null,null,null,null,null,null,null,null,null,null,null,null,2,1.6278490486701047E-2,20]
[null,null,null,null,null,null,null,null,null,null,null,null,null,null,null,null,null,1,0.84992480770911327,3]
[null,null,null,null,null,null,null,null,null,null,null,null,null,null,null,null,null,1,0.31366763497255457,14]